fUSD/lending_fUSD_20250617
["ID","MTS","AMOUNT","RATE_DAILY","PERIOD"]
[366243766,1750161041542,-151.0,0.0001589,2]
[366243767,1750161041552,-151.0,0.0001589,2]
[366243768,1750161041561,-151.0,0.0001589,2]
[366243769,1750161041571,-151.0,0.0001589,2]
[366243770,1750161041581,-151.0,0.0001589,2]
[366243771,1750161041590,-288.473412,0.0001589,2]
[366243772,1750161041600,-151.0,0.0001589,2]
[366243773,1750161041610,-192.336935,0.0001589,2]
[366243774,1750161041620,-192.336935,0.0001589,2]
[366243775,1750161041629,-151.0,0.0001589,2]
[366243776,1750161041639,-151.0,0.0001589,2]
[366243777,1750161041649,-221.795012,0.0001589,2]
[366243778,1750161041658,-71.35335218,0.0001589,2]
[366243779,1750161041670,-150.44165982,0.0001589,2]
[366243780,1750161041680,-1438.05132846,0.00015892,2]
[366243789,1750161043127,-353.04615263,0.00012939,2]
[366243817,1750161044061,-146.95384737,0.00012939,2]
[366243818,1750161044071,-150.0,0.00012939,2]
[366243819,1750161044081,-500.0,0.00012939,2]
[366243820,1750161044091,-481.76505965,0.00012939,2]
[366243821,1750161044101,-500.0,0.00013699,2]
[366243822,1750161044111,-700.0,0.000158,5]
[366243823,1750161044121,-2865.28109298,0.00015892,2]
[366243824,1750161044146,-8936.64245052,0.00015892,2]
[366243825,1750161044158,-306.1535972,0.00015892,2]
[366243826,1750161044182,-969.988693,0.00015228,2]
[366243827,1750161044192,-21007.82925906,0.00015892,2]
[366243828,1750161044202,-151.0,0.00015892,2]
[366243829,1750161044212,-231.255774,0.00015892,2]
[366243830,1750161044223,-151.0,0.00015892,2]
[366243831,1750161044233,-969.988693,0.00015892,2]
[366243832,1750161044242,-165.74737558,0.000159,2]
[366243833,1750161044252,-165.74737542,0.000159,2]
[366243834,1750161044267,-165.74737542,0.000159,2]
[366243835,1750161044277,-165.74737542,0.000159,2]
[366243836,1750161044286,-165.74737542,0.000159,2]
[366243837,1750161044296,-165.74737542,0.000159,2]
[366243838,1750161044308,-165.74737542,0.000159,2]
[366243839,1750161044318,-165.74737542,0.000159,2]
[366243840,1750161044327,-165.74737542,0.000159,2]
[366243841,1750161044337,-165.74737542,0.000159,2]
[366243842,1750161044347,-165.74737542,0.000159,2]
[366243843,1750161044357,-1.84703084,0.000159,2]
[366243847,1750161046070,-614.34958729,0.00013699,2]
[366243848,1750161046081,-299.269907,0.00015228,2]
[366243849,1750161046090,-969.988693,0.00015892,2]
[366243850,1750161046100,-299.269907,0.00015892,2]
[366243851,1750161046110,-163.90034458,0.000159,2]
[366243852,1750161046120,-165.74737542,0.000159,2]
[366243853,1750161046130,-165.74737542,0.000159,2]
[366243854,1750161046140,-377.46886385,0.000159,2]
[366243855,1750161046150,-114.65794644,0.000159,2]
[366243856,1750161046198,-51.08942898,0.000159,2]
[366243857,1750161046209,-250.85374042,0.000159,5]
[366243883,1750161363848,-1187.61613638,0.000112,5]
[366243884,1750161365200,-246.34838205,0.000107,2]
[366243885,1750161366948,-185.47312122,0.000107,2]
[366243886,1750161368836,-258.15846816,0.000107,2]
[366243887,1750161370770,-188.21032092,0.000107,2]
[366243888,1750161372472,-196.06634147,0.000107,2]
[366243889,1750161375923,-160.11,0.000107,2]
[366243916,1750161379803,-199.64312122,0.000107,2]
[366243942,1750161382357,-151.0,0.000107,2]
[366243943,1750161386036,-301.1783364,0.000107,2]
[366243944,1750161388653,-216.3013493,0.000107,2]
[366243946,1750161392274,-180.25,0.000107,2]
[366243947,1750161395934,-156.93123717,0.000107,2]
[366243948,1750161398840,-154.24198311,0.000107,2]
[366243949,1750161401192,-305.41406125,0.000107,2]
[366243950,1750161403624,-156.18,0.000107,2]
[366243951,1750161406145,-180.25,0.000107,2]
[366243952,1750161407699,-211.13369732,0.000107,2]
[366243953,1750161409588,-324.87996121,0.000107,2]
[366243954,1750161413362,-239.09288837,0.000107,2]
[366243955,1750161415784,-180.25,0.000107,2]
[366243956,1750161418387,-180.25,0.000107,2]
[366243957,1750161421563,-180.25,0.000107,2]
[366243958,1750161424462,-150.0,0.00010699,2]
[366243959,1750161424488,-30.25,0.000107,2]
[366243960,1750161428864,-213.18312774,0.000109,2]
[366243961,1750161431563,-346.79399417,0.000109,2]
[366243962,1750161434463,-218.97732938,0.000109,2]
[366243963,1750161436091,-152.0,0.000109,2]
[366243964,1750161440339,-256.85267062,0.000109,2]
[366243965,1750161442782,-156.94899276,0.000109,2]
[366243969,1750161448692,-194.77100724,0.000109,2]
[366243970,1750161453478,-283.79399802,0.000109,2]
[366243971,1750161459441,-310.53287568,0.000111,3]
[366243972,1750161462265,-405.6731263,0.000111,3]
[366243973,1750161464266,-216.43497056,0.000111,3]
[366243974,1750161467523,-359.47420948,0.000111,3]
[366243975,1750161473262,-366.15828746,0.000111,3]
[366243977,1750161476057,-267.40674198,0.000111,3]
[366243978,1750161478406,-330.59875115,0.000111,3]
[366243979,1750161480828,-269.40124885,0.000111,3]
[366243980,1750161485518,-161.12306465,0.000111,3]
[366243981,1750161487255,-159.67280719,0.000111,3]
[366243982,1750161491725,-261.23719281,0.000109,2]
[366243983,1750161494091,-267.82580479,0.000109,2]
[366243984,1750161498059,-232.47713639,0.000109,2]
[366243985,1750161501557,-317.27,0.000109,2]
[366243986,1750161504766,-183.49594308,0.000109,2]
[366243987,1750161506620,-200.47087397,0.000109,2]
[366243990,1750161512849,-174.85405692,0.000109,2]
[366243991,1750161515001,-371.73219068,0.000109,2]
[366243992,1750161521657,-280.30693535,0.000109,2]
[366243993,1750161523568,-323.43976043,0.000109,2]
[366243994,1750161526357,-300.0,0.000109,2]
[366243995,1750161530886,-262.81084993,0.000109,2]
[366243996,1750161534663,-169.33838923,0.000109,2]
[366243997,1750161536374,-167.85076084,0.000109,2]
[366243998,1750161539328,-306.49954337,0.000109,2]
[366244000,1750161543354,-217.58773344,0.00010899,2]
[366244001,1750161546259,-82.41226656,0.00010899,2]
[366244002,1750161546282,-563.28173749,0.000109,2]
[366244003,1750161551674,-155.76803154,0.000109,2]
[366244005,1750161553617,-229.66944764,0.000109,2]
[366244006,1750161556464,-204.0,0.000108,2]
[366244007,1750161558702,-259.93863424,0.000108,2]
[366244008,1750161561204,-300.0,0.000108,2]
[366244009,1750161563096,-226.97773313,0.000108,2]
[366244010,1750161566960,-188.6546574,0.000108,2]
[366244011,1750161569195,-338.63882065,0.000108,2]
[366244012,1750161574698,-204.36117935,0.000108,2]
[366244013,1750161578757,-159.10250715,0.000108,2]
[366244014,1750161582492,-222.90264848,0.000108,2]
[366244015,1750161585318,-167.99484437,0.000108,2]
[366244016,1750161588102,-360.64963246,0.000108,2]
[366244017,1750161590749,-161.85310669,0.000108,2]
[366244018,1750161593242,-211.93550712,0.000108,2]
[366244020,1750161597201,-165.56175373,0.000108,2]
[366244021,1750161598596,-200.0,0.000108,2]
[366244022,1750161602438,-351.28197117,0.00010799,2]
[366244023,1750161605656,-280.59109669,0.00010799,2]
[366244024,1750161608480,-250.98163072,0.00010799,2]
[366244025,1750161611120,-248.71802883,0.00010799,2]
[366244026,1750161616224,-68.42727259,0.00010799,2]
[366244027,1750161616247,-243.0,0.00010799,2]
[366244028,1750161616269,-31.64748974,0.00010799,2]
[366244029,1750161618460,-118.35251026,0.00010799,2]
[366244030,1750161618485,-51.59151476,0.000108,2]
[366244031,1750161621660,-200.0,0.000108,2]
[366244032,1750161634674,-151.07962116,0.000108,2]
[366244034,1750161637044,-219.0701159,0.000108,2]
[366244035,1750161638814,-174.94826502,0.000108,2]
[366244044,1750161642644,-230.37909296,0.000108,2]
[366244045,1750161645915,-250.0,0.00010745,2]
[366244046,1750161651185,-170.8002901,0.00010745,2]
[366244047,1750161664695,-266.83357352,0.00010745,2]
[366244048,1750161666708,-165.17214479,0.00010745,2]
[366244049,1750161670205,-261.21998438,0.00010745,2]
[366244050,1750161675091,-401.79637884,0.00010745,2]
[366244051,1750161679298,-175.36,0.00010745,2]
[366244052,1750161682546,-157.76919959,0.00010745,2]
[366244053,1750161685202,-203.70080041,0.000107,2]
[366244054,1750161688209,-154.12970542,0.000107,2]
[366244055,1750161689851,-340.53,0.000107,2]
[366244056,1750161697704,-193.68967642,0.00010647,2]
[366244057,1750161702723,-6.31032358,0.00010647,2]
[366244058,1750161702748,-168.0558128,0.000107,2]
[366244068,1750161796633,-261.35829243,0.00010545,2]
[366244069,1750161803511,-238.65582016,0.00010545,2]
[366244070,1750161813392,-190.97804346,0.00010545,2]
[366244071,1750161815736,-279.27557119,0.00010545,2]
[366244072,1750161819383,-182.42871183,0.00010545,2]
[366244073,1750161822219,-209.0,0.00010545,2]
[366244078,1750161998585,-192.79128817,0.000103,2]
[366244081,1750162052905,150.0,0.0001,5]
[366244082,1750162076826,-998.789265,0.00010248,2]
[366244083,1750162076860,-9001.210735,0.000104,2]
[366244084,1750162076976,-10000.0,0.000104,2]
[366244085,1750162077148,-10000.0,0.000104,2]
[366244086,1750162077331,-10000.0,0.000104,2]
[366244087,1750162077464,-10000.0,0.000104,2]
[366244088,1750162077604,-10000.0,0.000104,2]
[366244089,1750162077760,-7029.789265,0.000104,2]
[366244090,1750162077786,-185.07486853,0.00010498,2]
[366244091,1750162078281,-300.0,0.00010499,2]
[366244092,1750162078351,-600.0,0.00010499,2]
[366244093,1750162078376,-1885.13586647,0.000105,2]
[366244094,1750162078421,-2918.963475,0.000105,2]
[366244095,1750162078444,-2709.53504268,0.00010598,2]
[366244096,1750162078467,-176.10395983,0.00010599,2]
[366244097,1750162078490,-1200.0,0.00010599,2]
[366244098,1750162078521,-946.9999996,0.0001069,2]
[366244099,1750162078546,-2048.39752289,0.000107,3]
[366244100,1750162078601,-3515.60247711,0.000107,3]
[366244101,1750162078625,-388.98386907,0.000108,2]
[366244102,1750162078649,-225.73702943,0.000108,2]
[366244103,1750162078675,-5564.0,0.000109,5]
[366244104,1750162078700,-305.67662439,0.00011659,2]
[366244105,1750162078747,-1374.32337561,0.00011659,2]
[366244106,1750162078772,-600.0,0.0001177,4]
[366244107,1750162078797,-250.0,0.0001177,2]
[366244108,1750162078822,-600.0,0.0001188,4]
[366244109,1750162078845,-300.0,0.0001188,2]
[366244110,1750162078869,-250.0,0.0001188,2]
[366244111,1750162078893,-2351.0,0.00012825,2]
[366244112,1750162078916,-202.0,0.00013243,2]
[366244113,1750162078939,-354.45,0.00013699,2]
[366244114,1750162078963,-202.0,0.00013715,2]
[366244115,1750162078985,-1597.2,0.00013807,2]
[366244116,1750162079012,-200.0,0.0001383,7]
[366244117,1750162079036,-161.02,0.00013847,2]
[366244118,1750162079067,-151.0,0.00013847,2]
[366244119,1750162079090,-591.69,0.00013898,2]
[366244120,1750162079114,-558.82,0.0001396,2]
[366244121,1750162079138,-250.0,0.00013995,2]
[366244122,1750162079269,6.49662439,0.000108,2]
[366244123,1750162079293,187.99531014,0.000108,2]
[366244124,1750162079359,194.49193453,0.00011659,2]
[366244130,1750162123563,161.5222308,0.00014088,2]
[366244132,1750162146556,364.52,0.00013699,2]
[366244136,1750162211798,200.0,0.00013188,2]
[366244137,1750162212064,200.0,0.00013665,2]
[366244144,1750162232147,-200.0,0.00014143,3]
[366244145,1750162232157,-200.0,0.00014211,2]
[366244146,1750162232167,-1079.0,0.0001453,2]
[366244147,1750162232178,-200.0,0.00014621,3]
[366244148,1750162232188,-1000.0,0.0001463,2]
[366244149,1750162232197,-186.14,0.00014643,2]
[366244150,1750162232207,-500.0,0.00014665,2]
[366244151,1750162232217,-1082.34,0.00014676,2]
[366244152,1750162232227,-1200.0,0.00014692,2]
[366244153,1750162232238,-1095.02,0.00014693,2]
[366244154,1750162232247,-64.5,0.00014714,2]
[366244155,1750162232259,-101.78,0.00014714,2]
[366244156,1750162232269,-300.0,0.00014768,2]
[366244157,1750162232279,-150.0,0.0001477,2]
[366244158,1750162232288,-150.0,0.0001477,2]
[366244159,1750162232298,-150.0,0.0001477,2]
[366244160,1750162232308,-150.0,0.0001477,2]
[366244161,1750162232318,-1500.0,0.00014921,2]
[366244162,1750162232328,-250.0,0.00015,2]
[366244163,1750162232338,-36.07887795,0.00015,2]
[366244164,1750162232351,-298.695,0.00015,2]
[366244165,1750162232369,-460.0,0.00015,2]
[366244166,1750162232381,-2736.65328885,0.00015,2]
[366244167,1750162232391,-300.0,0.00015,2]
[366244168,1750162232400,-200.0,0.0001501,2]
[366244169,1750162232410,-185.07486853,0.0001508,2]
[366244170,1750162232421,-150.0,0.00015098,2]
[366244171,1750162232431,-200.0,0.00015098,4]
[366244172,1750162232441,-666.0,0.00015113,2]
[366244173,1750162232451,-393.6,0.0001512,2]
[366244174,1750162232461,-200.0,0.0001513,2]
[366244175,1750162232470,-200.0,0.00015148,2]
[366244176,1750162232480,-157.27,0.00015164,2]
[366244177,1750162232490,-9000.91607183,0.00015165,2]
[366244178,1750162232520,-4800.00000001,0.00015165,2]
[366244179,1750162232531,-10099.08392816,0.00015165,2]
[366244180,1750162232540,-150.0,0.0001518,2]
[366244181,1750162232550,-200.0,0.0001524,2]
[366244182,1750162232560,-968.95348946,0.00015295,2]
[366244183,1750162232580,-110.04651054,0.00015295,2]
[366244184,1750162232590,-339.99056246,0.00015312,2]
[366244185,1750162232602,-2007.9117542,0.00015312,2]
[366244186,1750162232613,-2347.90231667,0.00015312,2]
[366244187,1750162232622,-200.0,0.0001536,2]
[366244188,1750162232632,-910.06,0.0001537,2]
[366244189,1750162232642,-163.48,0.0001537,2]
[366244190,1750162232652,-163.48,0.0001537,2]
[366244191,1750162232661,-163.32,0.0001537,2]
[366244192,1750162232671,-150.0,0.00015426,2]
[366244193,1750162232684,-167.57724718,0.00015467,2]
[366244194,1750162232694,-151.0,0.00015467,2]
[366244195,1750162232704,-207.4,0.00015467,2]
[366244196,1750162232713,-200.0,0.0001548,2]
[366244198,1750162232723,-200.0,0.00015576,4]
[366244200,1750162232733,-161.02,0.00015578,2]
[366244202,1750162232743,-150.0,0.0001559,2]
[366244204,1750162232752,-627.83,0.00015594,3]
[366244205,1750162232762,-200.0,0.000156,2]
[366244207,1750162232772,-1000.0,0.000157,2]
[366244209,1750162232787,-300.0,0.000157,5]
[366244211,1750162232797,-200.0,0.0001571,2]
[366244213,1750162232807,-150.0,0.00015755,2]
[366244215,1750162232818,-1000.0,0.00015775,2]
[366244217,1750162232830,-2500.0,0.00015775,2]
[366244219,1750162232839,-150.0,0.00015781,2]
[366244221,1750162232848,-600.0,0.000158,5]
[366244223,1750162232859,-200.0,0.0001583,2]
[366244225,1750162232869,-3332.0,0.00015848,2]
[366244227,1750162232880,-946.0,0.00015848,2]
[366244229,1750162232889,-802.0,0.00015848,2]
[366244231,1750162232898,-637.0,0.00015848,2]
[366244233,1750162232907,-1674.0,0.00015848,2]
[366244235,1750162232917,-900.0,0.000159,5]
[366244237,1750162232926,-152.62364378,0.000159,2]
[366244239,1750162232936,-11356.69382708,0.000159,2]
[366244241,1750162232946,-203.76266703,0.000159,2]
[366244243,1750162232957,-10296.43,0.000159,2]
[366244245,1750162232967,-3241.6078,0.000159,2]
[366244246,1750162232976,-203.76266696,0.00015938,2]
[366244248,1750162232987,-3000.0,0.0001595,2]
[366244250,1750162232996,-200.0,0.0001595,2]
[366244252,1750162233009,-203.76266696,0.00015977,2]
[366244255,1750162233020,-500.0,0.00015999,2]
[366244256,1750162233031,-620.0,0.00015999,2]
[366244258,1750162233041,-500.0,0.00015999,2]
[366244260,1750162233052,-335.2,0.00015999,2]
[366244262,1750162233062,-500.0,0.00015999,2]
[366244264,1750162233072,-500.0,0.00015999,2]
[366244266,1750162233082,-403.13007572,0.00015999,2]
[366244268,1750162233092,-500.0,0.00015999,2]
[366244270,1750162233102,-212.85208608,0.00015999,2]
[366244272,1750162233111,-22545.74550626,0.00016,3]
[366244274,1750162233121,-5429.34095784,0.00016,2]
[366244277,1750162233133,-1399.93190357,0.00016,2]
[366244280,1750162233153,-22051.08408074,0.00016,2]
[366244282,1750162233166,-9518.40762,0.00016,2]
[366244284,1750162233178,-599.03060941,0.00016,2]
[366244287,1750162233202,-542.468985,0.00016,2]
[366244730,1750162238136,-756.93683154,0.00016,2]
[366244733,1750162238148,-5385.32064988,0.00016,2]
[366244735,1750162238158,-151.0,0.00016,2]
[366244737,1750162238168,-151.0,0.00016,2]
[366244740,1750162238178,-1000.0,0.00016,2]
[366244771,1750162238481,-833.87704394,0.00016,3]
[366244773,1750162238492,-150.0,0.00016001,2]
[366244776,1750162238502,-152.62364374,0.00016003,2]
[366244777,1750162238511,-11356.69382708,0.0001601,2]
[366244779,1750162238521,-203.76266696,0.00016015,2]
[366244782,1750162238532,-807.928338,0.0001605,2]
[366244784,1750162238542,-200.0,0.00016054,5]
[366244786,1750162238551,-203.76266696,0.00016054,2]
[366244787,1750162238560,-200.0,0.0001606,2]
[366244789,1750162238571,-150.0,0.00016083,2]
[366244791,1750162238581,-603.43090944,0.00016092,2]
[366244793,1750162238592,-203.76266696,0.00016092,2]
[366244796,1750162238608,-1079.0,0.00016099,2]
[366244797,1750162238619,-152.62364374,0.00016106,2]
[366244800,1750162238630,-11356.69382708,0.0001612,2]
[366244803,1750162238640,-203.76266696,0.00016131,2]
[366244806,1750162238650,-717.0,0.0001614,2]
[366244809,1750162238660,-629.1437,0.00016146,2]
[366244811,1750162238669,-1000.0,0.00016146,2]
[366244814,1750162238680,-1680.0,0.00016161,2]
[366244816,1750162238691,-6606.0,0.00016164,2]
[366244818,1750162238702,-203.76266696,0.00016169,2]
[366244820,1750162238712,-140.64027518,0.00016177,2]
[366244823,1750162238733,-454.64861545,0.00016177,2]
[366244825,1750162238744,-1122.78,0.00016177,2]
[366244827,1750162238755,-254.61957708,0.00016177,2]
[366244831,1750162238777,-733.13076786,0.00016177,2]
[366244833,1750162238793,-477.8848984,0.00016177,2]
[366244835,1750162238804,-907.29586603,0.00016177,2]
[366244838,1750162238814,-155.0,0.00016177,2]
[366244839,1750162238831,-884.0,0.00016177,2]
[366244841,1750162238841,-169.5330755,0.00016177,2]
[366244844,1750162238855,-1235.0,0.00016177,2]
[366244846,1750162238868,-5706.4669245,0.00016177,2]
[366244848,1750162238878,-500.0,0.00016178,2]
[366244850,1750162238889,-200.0,0.0001618,2]
[366244852,1750162238899,-569.372,0.0001618,2]
[366244854,1750162238910,-3719.29065977,0.0001618,2]
[366244857,1750162238923,-6723.43528585,0.0001618,2]
[366244859,1750162238933,-709.46,0.00016192,2]
[366244861,1750162238943,-108.54858342,0.00016192,2]
[366244863,1750162238955,-54.77141658,0.00016192,2]
[366244865,1750162238966,-2000.0,0.00016198,2]
[366244867,1750162238976,-500.0,0.00016198,2]
[366244869,1750162238986,-200.0,0.00016198,2]
[366244871,1750162238996,-203.76266696,0.00016208,2]
[366244873,1750162239007,-152.62364374,0.0001621,2]
[366244875,1750162239018,-11356.69382708,0.00016229,2]
[366244878,1750162239029,-203.76266696,0.00016246,2]
[366244880,1750162239039,-150.0,0.00016256,2]
[366244882,1750162239049,-643.98056754,0.00016259,2]
[366244884,1750162239062,-5869.39126525,0.00016259,2]
[366244885,1750162239074,-3929.35411282,0.00016259,2]
[366244886,1750162239084,-668.32967843,0.00016274,2]
[366244887,1750162239094,-7487.13804318,0.00016278,2]
[366244888,1750162239106,-3017.64616821,0.00016278,2]
[366244889,1750162239127,-2881.23417086,0.00016278,2]
[366244890,1750162239140,-79.01181775,0.00016278,2]
[366244891,1750162239150,-780.11646675,0.0001628,2]
[366244893,1750162239173,-1912.9,0.0001628,2]
[366244924,1750162240308,-301.9,0.0001628,2]
[366244928,1750162240331,-3594.43905136,0.0001628,2]
[366244930,1750162240344,-302.55613708,0.0001628,2]
[366245039,1750162241516,-758.79780336,0.0001628,2]
[366245044,1750162241546,-93.85263146,0.0001628,2]
[366245046,1750162241557,-668.32967843,0.00016281,2]
[366245048,1750162241568,-203.76266696,0.00016285,2]
[366245050,1750162241579,-668.32967843,0.00016291,2]
[366245052,1750162241590,-200.0,0.00016292,2]
[366245054,1750162241600,-200.0,0.000163,2]
[366245056,1750162241610,-1200.0,0.000163,5]
[366245058,1750162241621,-237.0,0.000163,2]
[366245061,1750162241632,-376.0,0.000163,2]
[366245063,1750162241643,-770.0,0.000163,2]
[366245065,1750162241653,-668.32967843,0.00016308,2]
[366245067,1750162241663,-716.95,0.0001631,2]
[366245069,1750162241673,-152.62364374,0.00016313,2]
[366245071,1750162241690,-168.0,0.00016319,2]
[366245073,1750162241701,-168.0,0.00016323,2]
[366245076,1750162241711,-203.76266696,0.00016323,2]
[366245078,1750162241721,-668.32967843,0.00016326,2]
[366245080,1750162241732,-668.32967843,0.00016335,2]
[366245082,1750162241744,-618.39999873,0.00016337,2]
[366245084,1750162241758,-49.9296797,0.00016337,2]
[366245087,1750162241768,-1349.86431121,0.00016337,2]
[366245089,1750162241784,-1736.8770169,0.00016337,2]
[366245093,1750162241814,-5400.32236323,0.00016337,2]
[366245240,1750162243308,-1955.66225427,0.00016337,2]
[366245242,1750162243319,-187.3868612,0.00016338,2]
[366245244,1750162243330,-162.75269479,0.00016338,2]
[366245246,1750162243340,-178.4199622,0.00016338,2]
[366245248,1750162243351,-1086.9769202,0.00016338,2]
[366245250,1750162243361,-1322.65335844,0.00016339,2]
[366245253,1750162243375,-10034.04046864,0.00016339,2]
[366245255,1750162243384,-203.76266696,0.00016362,2]
[366245257,1750162243395,-668.32967843,0.00016369,2]
[366245259,1750162243405,-151.0,0.00016372,2]
[366245261,1750162243415,-150.0,0.00016372,2]
[366245263,1750162243426,-150.0,0.00016372,2]
[366245265,1750162243437,-201.0151786,0.00016372,2]
[366245267,1750162243447,-150.0,0.00016372,2]
[366245269,1750162243457,-150.0,0.00016372,2]
[366245271,1750162243467,-150.0,0.00016372,2]
[366245274,1750162243478,-150.0,0.00016372,2]
[366245276,1750162243488,-150.0,0.00016372,2]
[366245278,1750162243498,-500.0,0.00016372,2]
[366245280,1750162243508,-200.98952821,0.00016372,2]
[366245282,1750162243518,-150.0,0.00016372,2]
[366245284,1750162243528,-150.0,0.00016372,2]
[366245286,1750162243538,-204.62530021,0.00016372,2]
[366245288,1750162243548,-150.0,0.00016372,2]
[366245290,1750162243558,-150.0,0.00016372,2]
[366245292,1750162243569,-150.62341339,0.00016372,2]
[366245294,1750162243579,-150.0,0.00016372,2]
[366245296,1750162243590,-150.0,0.00016372,2]
[366245299,1750162243601,-151.0,0.00016375,2]
[366245301,1750162243612,-280.0,0.00016378,2]
[366245303,1750162243622,-9129.79919724,0.00016382,2]
[366245308,1750162243660,-2478.20871879,0.00016382,2]
[366245312,1750162243675,-267.45896499,0.00016382,2]
[366245316,1750162243700,-1494.41210024,0.00016382,2]
[366245318,1750162243712,-200.0,0.00016382,2]
[366245343,1750162244024,-200.0,0.00016384,2]
[366245349,1750162244111,-200.0,0.00016385,2]
[366245351,1750162244121,-263.35286667,0.00016386,2]
[366245353,1750162244132,-200.0,0.00016387,2]
[366245355,1750162244142,-1481.16999224,0.00016388,2]
[366245358,1750162244153,-2088.4288639,0.00016388,2]
[366245360,1750162244163,-492.2991082,0.00016388,2]
[366245362,1750162244173,-1406.61003087,0.00016388,2]
[366245364,1750162244185,-1780.5883095,0.00016388,2]
[366245367,1750162244206,-556.157003,0.00016388,2]
[366245376,1750162244281,-1872.72815922,0.00016388,2]
[366245378,1750162244293,-326.22620907,0.00016388,2]
[366245564,1750162246167,-170.16660732,0.00016288,2]
[366245566,1750162246177,-2386.90166255,0.00016388,2]
[366245571,1750162246222,-1075.77105184,0.00016388,2]
[366245578,1750162246277,-31833.27675734,0.00016388,2]
[366246199,1750162898833,173.06,0.00012171,2]
[366246223,1750163212712,346.29,0.00013699,2]
[366246228,1750163281594,8172.12052453,0.00014,2]
[366246229,1750163281618,10000.0,0.00014,2]
[366246230,1750163281965,10000.0,0.00014,2]
[366246231,1750163281996,10000.0,0.00014,2]
[366246232,1750163282021,10000.0,0.00014,2]
[366246233,1750163282045,10000.0,0.00014,2]
[366246234,1750163282068,10000.0,0.00014,2]
[366246235,1750163282097,10000.0,0.00014,2]
[366246236,1750163282121,10000.0,0.00014,2]
[366246237,1750163282148,10000.0,0.00014,2]
[366246238,1750163282175,10000.0,0.00014,2]
[366246239,1750163282200,10000.0,0.00014,2]
[366246240,1750163282226,10000.0,0.00014,2]
[366246241,1750163282252,10000.0,0.00014,2]
[366246242,1750163282277,6238.34574334,0.00014,2]
[366246243,1750163292113,200.0,0.00013532,2]
[366246244,1750163292358,200.0,0.00014031,2]
[366246251,1750163323501,3361.65425666,0.00014,2]
[366246252,1750163323527,8167.40587416,0.00014,2]
[366246259,1750163329614,1832.59412584,0.00014,2]
[366246260,1750163329638,10000.0,0.00014,2]
[366246261,1750163329663,10000.0,0.00014,2]
[366246262,1750163329686,10000.0,0.00014,2]
[366246263,1750163329711,10000.0,0.00014,2]
[366246264,1750163329734,10000.0,0.00014,2]
[366246265,1750163329759,10000.0,0.00014,2]
[366246266,1750163329783,10000.0,0.00014,2]
[366246267,1750163329808,10000.0,0.00014,2]
[366246268,1750163329832,10000.0,0.00014,2]
[366246269,1750163329856,10000.0,0.00014,2]
[366246270,1750163329879,10000.0,0.00014,2]
[366246271,1750163329903,10000.0,0.00014,2]
[366246272,1750163329928,10000.0,0.00014,2]
[366246273,1750163329952,10000.0,0.00014,2]
[366246274,1750163329976,10000.0,0.00014,2]
[366246275,1750163330000,10000.0,0.00014,2]
[366246276,1750163330024,10000.0,0.00014,2]
[366246277,1750163330049,10000.0,0.00014,2]
[366246278,1750163330073,10000.0,0.00014,2]
[366246279,1750163330099,10000.0,0.00014,2]
[366246280,1750163330123,10000.0,0.00014,2]
[366246281,1750163330148,10000.0,0.00014,2]